[Event "Blixt-SM 2021"]
[Site "Elite Hotel Marina Plaza, Kungstorget 6, Helsingborg, Sweden"]
[Date "2021.11.14"]
[Round "6.5"]
[White "Storme, Isak"]
[Black "Muhamed, Hoger"]
[Result "1-0"]
[TimeControl "3 minutes + 2 seconds per move."]
[WhiteTitle "FM"]
[WhiteFideId "1728113"]
[BlackFideId "1742841"]
[WhiteElo "2037"]
[BlackElo "1838"]

1. d4 {[%clk 00:03:02]} {[%emt 00:00:01]} Nf6 {[%clk 00:03:04]} {[%emt
00:00:01]} 2. Bf4 {[%clk 00:03:03]} {[%emt 00:00:01]} g6 {[%clk 00:03:05]} 3.
Nc3 {[%clk 00:03:03]} {[%emt 00:00:02]} Bg7 {[%clk 00:03:06]} 4. e4 {[%clk
00:03:04]} {[%emt 00:00:02]} O-O {[%clk 00:03:07]} {[%emt 00:00:02]} 5. e5
{[%clk 00:03:02]} {[%emt 00:00:04]} Ne8 {[%clk 00:03:08]} 6. Nf3 {[%clk
00:02:59]} {[%emt 00:00:05]} d6 {[%clk 00:03:10]} 7. Bc4 {[%clk 00:02:52]}
{[%emt 00:00:08]} Bg4 {[%clk 00:02:59]} {[%emt 00:00:12]} 8. h3 {[%clk
00:02:51]} {[%emt 00:00:03]} Bxf3 {[%clk 00:03:00]} {[%emt 00:00:02]} 9. Qxf3
{[%clk 00:02:51]} {[%emt 00:00:02]} Nc6 {[%clk 00:02:51]} {[%emt 00:00:11]} 10.
O-O-O {[%clk 00:02:49]} {[%emt 00:00:03]} Qc8 {[%clk 00:02:45]} {[%emt
00:00:09]} 11. h4 {[%clk 00:02:29]} {[%emt 00:00:22]} dxe5 {[%clk 00:02:46]}
{[%emt 00:00:01]} 12. dxe5 {[%clk 00:02:23]} {[%emt 00:00:08]} Nxe5 {[%clk
00:02:47]} {[%emt 00:00:01]} 13. Bxe5 {[%clk 00:02:10]} {[%emt 00:00:15]} Bxe5
{[%clk 00:02:48]} {[%emt 00:00:01]} 14. Nd5 {[%clk 00:02:10]} {[%emt 00:00:02]}
Bd6 {[%clk 00:02:26]} {[%emt 00:00:22]} 15. h5 {[%clk 00:02:10]} {[%emt
00:00:03]} c6 {[%clk 00:02:26]} {[%emt 00:00:04]} 16. hxg6 {[%clk 00:01:14]}
{[%emt 00:00:57]} cxd5 {[%clk 00:02:08]} {[%emt 00:00:20]} 17. gxf7+ {[%clk
00:00:36]} {[%emt 00:00:40]} Rxf7 {[%clk 00:01:54]} {[%emt 00:00:16]} 18. Qxd5
{[%clk 00:00:33]} {[%emt 00:00:05]} e6 {[%clk 00:01:49]} {[%emt 00:00:07]} 19.
Qxe6 {[%clk 00:00:29]} {[%emt 00:00:06]} Qxe6 {[%clk 00:01:49]} {[%emt
00:00:01]} 20. Bxe6 {[%clk 00:00:29]} {[%emt 00:00:02]} Bf4+ {[%clk 00:01:45]}
{[%emt 00:00:06]} 21. Kb1 {[%clk 00:00:30]} Ng7 {[%clk 00:01:44]} {[%emt
00:00:03]} 22. Bxf7+ {[%clk 00:00:29]} {[%emt 00:00:03]} Kxf7 {[%clk 00:01:45]}
23. Rd7+ {[%clk 00:00:29]} {[%emt 00:00:02]} Kg6 {[%clk 00:01:41]} {[%emt
00:00:06]} 24. g3 {[%clk 00:00:29]} {[%emt 00:00:02]} Bg5 {[%clk 00:01:39]}
{[%emt 00:00:02]} 25. Rxb7 {[%clk 00:00:27]} {[%emt 00:00:06]} a5 {[%clk
00:01:31]} {[%emt 00:00:10]} 26. f4 {[%clk 00:00:25]} {[%emt 00:00:05]} Bf6
{[%clk 00:01:32]} 27. g4 {[%clk 00:00:26]} {[%emt 00:00:01]} Re8 {[%clk
00:00:50]} {[%emt 00:00:45]} 28. Rb6 {[%clk 00:00:23]} {[%emt 00:00:04]} h6
{[%clk 00:00:49]} {[%emt 00:00:03]} 29. g5 {[%clk 00:00:15]} {[%emt 00:00:10]}
hxg5 {[%clk 00:00:49]} 30. fxg5 {[%clk 00:00:16]} {[%emt 00:00:01]} Kxg5 {[%clk
00:00:50]} {[%emt 00:00:02]} 31. Rg1+ {[%clk 00:00:15]} {[%emt 00:00:02]} Kf5
{[%clk 00:00:50]} {[%emt 00:00:03]} 32. Rf1+ {[%clk 00:00:16]} Kg6 {[%clk
00:00:49]} {[%emt 00:00:02]} 33. Rbxf6+ {[%clk 00:00:16]} {[%emt 00:00:02]} Kg5
{[%clk 00:00:49]} {[%emt 00:00:02]} 34. R6f2 {[%clk 00:00:14]} {[%emt
00:00:03]} Re5 {[%clk 00:00:42]} {[%emt 00:00:10]} 35. a4 {[%clk 00:00:12]}
{[%emt 00:00:04]} Nf5 {[%clk 00:00:42]} {[%emt 00:00:02]} 36. Rxf5+ {[%clk
00:00:09]} {[%emt 00:00:05]} Rxf5 {[%clk 00:00:43]} 37. Rxf5+ Kxf5 {[%clk
00:00:45]} 38. c3 {[%clk 00:00:10]} {[%emt 00:00:02]} Ke4 {[%clk 00:00:46]} 39.
b4 {[%clk 00:00:10]} {[%emt 00:00:02]} Kd5 {[%clk 00:00:44]} {[%emt 00:00:04]}
40. b5 {[%clk 00:00:11]} {[%emt 00:00:02]} Kc5 {[%clk 00:00:44]} {[%emt
00:00:01]} 41. Kc2 {[%clk 00:00:11]} {[%emt 00:00:02]} Kb6 {[%clk 00:00:45]}
{[%emt 00:00:01]} 42. Kd3 {[%clk 00:00:12]} Kc5 {[%clk 00:00:46]} {[%emt
00:00:01]} 43. Ke4 {[%clk 00:00:13]} 1-0

[Event "Blixt-SM 2021"]
[Site "Elite Hotel Marina Plaza, Kungstorget 6, Helsingborg, Sweden"]
[Date "2021.11.14"]
[Round "8.3"]
[White "Smith, Axel"]
[Black "Abedinov, Adnan"]
[Result "1-0"]
[TimeControl "3 minutes + 2 seconds per move."]
[WhiteTitle "GM"]
[WhiteFideId "1707930"]
[BlackFideId "1703544"]
[WhiteElo "2473"]
[BlackElo "2170"]

1. e4 {[%clk 00:03:04]} {[%emt 00:40:53]} c5 {[%clk 00:02:59]} {[%emt
00:00:06]} 2. Nc3 {[%clk 00:03:05]} Nc6 {[%clk 00:02:59]} {[%emt 00:00:02]} 3.
Bb5 {[%clk 00:03:06]} Nd4 {[%clk 00:02:54]} {[%emt 00:00:07]} 4. Bc4 {[%clk
00:03:08]} {[%emt 00:00:01]} e6 {[%clk 00:02:55]} 5. Nf3 {[%clk 00:03:05]}
{[%emt 00:00:05]} a6 {[%clk 00:02:54]} {[%emt 00:00:03]} 6. d3 {[%clk
00:02:49]} {[%emt 00:00:18]} b5 {[%clk 00:02:53]} {[%emt 00:00:03]} 7. Bb3
{[%clk 00:02:50]} d6 {[%clk 00:02:48]} {[%emt 00:00:07]} 8. Nxd4 {[%clk
00:02:49]} {[%emt 00:00:04]} cxd4 {[%clk 00:02:49]} {[%emt 00:00:01]} 9. Ne2
{[%clk 00:02:50]} Qb6 {[%clk 00:02:43]} {[%emt 00:00:08]} 10. c3 {[%clk
00:02:48]} {[%emt 00:00:04]} dxc3 {[%clk 00:02:42]} {[%emt 00:00:03]} 11. Nxc3
{[%clk 00:02:39]} {[%emt 00:00:10]} Nf6 {[%clk 00:02:41]} {[%emt 00:00:03]} 12.
Be3 {[%clk 00:02:40]} {[%emt 00:00:02]} Qd8 {[%clk 00:02:37]} {[%emt 00:00:06]}
13. O-O {[%clk 00:02:33]} {[%emt 00:00:09]} Be7 {[%clk 00:02:38]} 14. f3 {[%clk
00:02:18]} {[%emt 00:00:16]} O-O {[%clk 00:02:34]} {[%emt 00:00:06]} 15. d4
{[%clk 00:02:19]} {[%emt 00:00:02]} Bb7 {[%clk 00:02:31]} {[%emt 00:00:05]} 16.
Qd2 {[%clk 00:02:17]} {[%emt 00:00:05]} Qd7 {[%clk 00:02:23]} {[%emt 00:00:09]}
17. a4 {[%clk 00:02:12]} {[%emt 00:00:07]} b4 {[%clk 00:02:19]} {[%emt
00:00:06]} 18. Ne2 {[%clk 00:02:09]} {[%emt 00:00:05]} a5 {[%clk 00:02:20]} 19.
Rfc1 {[%clk 00:02:02]} {[%emt 00:00:09]} Rfc8 {[%clk 00:02:20]} {[%emt
00:00:02]} 20. Bc4 {[%clk 00:02:00]} {[%emt 00:00:05]} d5 {[%clk 00:01:41]}
{[%emt 00:00:41]} 21. Bb5 {[%clk 00:02:00]} {[%emt 00:00:02]} Bc6 {[%clk
00:01:33]} {[%emt 00:00:10]} 22. e5 {[%clk 00:01:55]} {[%emt 00:00:07]} Bxb5
{[%clk 00:01:09]} {[%emt 00:00:26]} 23. Rxc8+ {[%clk 00:01:48]} {[%emt
00:00:10]} Rxc8 {[%clk 00:01:06]} {[%emt 00:00:04]} 24. axb5 {[%clk 00:01:48]}
{[%emt 00:00:02]} Ne8 {[%clk 00:01:00]} {[%emt 00:00:08]} 25. Rxa5 {[%clk
00:01:49]} Rb8 {[%clk 00:00:53]} {[%emt 00:00:09]} 26. Qd3 {[%clk 00:01:33]}
{[%emt 00:00:19]} Bd8 {[%clk 00:00:50]} {[%emt 00:00:04]} 27. Ra4 {[%clk
00:01:28]} {[%emt 00:00:07]} Rxb5 {[%clk 00:00:49]} {[%emt 00:00:04]} 28. Nc1
{[%clk 00:01:21]} {[%emt 00:00:08]} Rb8 {[%clk 00:00:49]} {[%emt 00:00:02]} 29.
Ra1 {[%clk 00:01:08]} {[%emt 00:00:15]} f6 {[%clk 00:00:42]} {[%emt 00:00:09]}
30. Bf4 {[%clk 00:01:05]} {[%emt 00:00:05]} fxe5 {[%clk 00:00:38]} {[%emt
00:00:06]} 31. Bxe5 {[%clk 00:01:06]} {[%emt 00:00:01]} Bc7 {[%clk 00:00:20]}
{[%emt 00:00:20]} 32. Bxc7 {[%clk 00:00:59]} {[%emt 00:00:09]} Qxc7 {[%clk
00:00:17]} {[%emt 00:00:04]} 33. Nb3 {[%clk 00:01:00]} Nd6 {[%clk 00:00:17]}
{[%emt 00:00:02]} 34. Nc5 {[%clk 00:00:53]} {[%emt 00:00:09]} Qf7 {[%clk
00:00:12]} {[%emt 00:00:07]} 35. Re1 {[%clk 00:00:48]} {[%emt 00:00:07]} Re8
{[%clk 00:00:07]} {[%emt 00:00:07]} 36. Qa6 {[%clk 00:00:44]} {[%emt 00:00:07]}
Nc4 {[%clk 00:00:05]} {[%emt 00:00:03]} 37. b3 {[%clk 00:00:36]} {[%emt
00:00:10]} Qf6 {[%clk 00:00:06]} {[%emt 00:00:01]} 38. Nxe6 {[%clk 00:00:28]}
{[%emt 00:00:10]} Na3 {[%clk 00:00:03]} {[%emt 00:00:05]} 39. Qc6 {[%clk
00:00:26]} {[%emt 00:00:04]} 1-0

[Event "Blixt-SM 2021"]
[Site "Elite Hotel Marina Plaza, Kungstorget 6, Helsingborg, Sweden"]
[Date "2021.11.14"]
[Round "10.1"]
[White "Olsson, Linus"]
[Black "Smith, Axel"]
[Result "1/2-1/2"]
[TimeControl "3 minutes + 2 seconds per move."]
[WhiteTitle "FM"]
[BlackTitle "GM"]
[WhiteFideId "1706098"]
[BlackFideId "1707930"]
[WhiteElo "2204"]
[BlackElo "2473"]

1. d4 {[%clk 00:03:03]} Nf6 {[%clk 00:03:04]} 2. c4 {[%clk 00:03:04]} {[%emt
00:00:02]} a6 {[%clk 00:03:05]} 3. Nf3 {[%clk 00:02:53]} {[%emt 00:00:13]} e6
{[%clk 00:03:07]} 4. g3 {[%clk 00:02:52]} {[%emt 00:00:03]} c5 {[%clk
00:03:07]} {[%emt 00:00:02]} 5. d5 {[%clk 00:02:51]} {[%emt 00:00:03]} b5
{[%clk 00:03:04]} {[%emt 00:00:05]} 6. Bg2 {[%clk 00:02:43]} {[%emt 00:00:10]}
exd5 {[%clk 00:02:55]} {[%emt 00:00:11]} 7. cxd5 {[%clk 00:02:44]} {[%emt
00:00:01]} d6 {[%clk 00:02:50]} {[%emt 00:00:07]} 8. O-O {[%clk 00:02:38]}
{[%emt 00:00:08]} g6 {[%clk 00:02:51]} {[%emt 00:00:01]} 9. e4 {[%clk
00:02:36]} {[%emt 00:00:03]} Bg7 {[%clk 00:02:49]} {[%emt 00:00:04]} 10. e5
{[%clk 00:02:36]} {[%emt 00:00:02]} dxe5 {[%clk 00:02:45]} {[%emt 00:00:06]} 11.
Nxe5 {[%clk 00:02:37]} O-O {[%clk 00:02:41]} {[%emt 00:00:07]} 12. Nc6 {[%clk
00:02:09]} {[%emt 00:00:29]} Nxc6 {[%clk 00:02:19]} {[%emt 00:00:24]} 13. dxc6
{[%clk 00:02:10]} Qxd1 {[%clk 00:02:19]} {[%emt 00:00:03]} 14. Rxd1 {[%clk
00:02:11]} Bg4 {[%clk 00:02:20]} 15. Rf1 {[%clk 00:01:45]} {[%emt 00:00:28]}
Rac8 {[%clk 00:02:09]} {[%emt 00:00:13]} 16. Nc3 {[%clk 00:01:35]} {[%emt
00:00:11]} Be6 {[%clk 00:01:59]} {[%emt 00:00:12]} 17. Be3 {[%clk 00:01:34]}
{[%emt 00:00:04]} c4 {[%emt 00:00:19]} 18. Bc5 {[%clk 00:01:26]} {[%emt
00:00:09]} Rfe8 {[%clk 00:01:41]} {[%emt 00:00:04]} 19. a4 {[%clk 00:01:27]}
{[%emt 00:00:01]} Ng4 {[%clk 00:01:22]} {[%emt 00:00:21]} 20. axb5 {[%clk
00:01:24]} {[%emt 00:00:06]} axb5 {[%clk 00:01:23]} 21. Nxb5 {[%clk 00:01:05]}
{[%emt 00:00:21]} Bxb2 {[%clk 00:01:23]} {[%emt 00:00:02]} 22. Rab1 {[%clk
00:00:59]} {[%emt 00:00:07]} c3 {[%clk 00:01:24]} 23. Bd4 {[%clk 00:00:57]}
{[%emt 00:00:04]} Bc4 {[%clk 00:01:11]} {[%emt 00:00:15]} 24. Nxc3 {[%clk
00:00:44]} {[%emt 00:00:15]} Bxf1 {[%clk 00:01:06]} {[%emt 00:00:08]} 25. Kxf1
{[%clk 00:00:43]} {[%emt 00:00:02]} Bxc3 {[%clk 00:01:02]} {[%emt 00:00:06]} 26.
Bxc3 {[%clk 00:00:44]} {[%emt 00:00:02]} Ne5 {[%clk 00:01:04]} 27. Rb6 {[%clk
00:00:30]} {[%emt 00:00:16]} Re6 {[%clk 00:00:54]} {[%emt 00:00:12]} 28. Bd5
{[%clk 00:00:16]} {[%emt 00:00:16]} Rd6 {[%clk 00:00:42]} {[%emt 00:00:14]} 29.
Bxe5 {[%clk 00:00:07]} {[%emt 00:00:11]} Rxd5 {[%clk 00:00:43]} {[%emt
00:00:01]} 30. Bf4 {[%clk 00:00:07]} {[%emt 00:00:02]} Rc5 {[%clk 00:00:30]}
{[%emt 00:00:15]} 31. c7 {[%clk 00:00:06]} {[%emt 00:00:03]} R5xc7 {[%clk
00:00:23]} {[%emt 00:00:09]} 32. Bxc7 {[%clk 00:00:07]} Rxc7 {[%clk 00:00:25]}
33. Kg2 {[%clk 00:00:08]} {[%emt 00:00:01]} h5 {[%clk 00:00:25]} {[%emt
00:00:02]} 34. h4 {[%clk 00:00:09]} Kg7 {[%clk 00:00:27]} 35. Rb3 {[%clk
00:00:10]} Rc4 {[%clk 00:00:28]} {[%emt 00:00:02]} 36. Ra3 {[%clk 00:00:12]}
{[%emt 00:00:01]} Rc7 {[%clk 00:00:25]} {[%emt 00:00:04]} 37. Rb3 {[%clk
00:00:13]} f5 {[%clk 00:00:26]} 38. Ra3 {[%clk 00:00:14]} {[%emt 00:00:01]} Rf7
{[%clk 00:00:25]} {[%emt 00:00:03]} 39. f4 {[%clk 00:00:14]} {[%emt 00:00:02]}
Rb7 {[%clk 00:00:26]} 40. Ra6 {[%clk 00:00:14]} {[%emt 00:00:02]} Rb2+ {[%clk
00:00:26]} {[%emt 00:00:01]} 41. Kf3 {[%clk 00:00:15]} {[%emt 00:00:01]} Rb3+
{[%clk 00:00:27]} 42. Kf2 {[%clk 00:00:16]} Kf7 {[%clk 00:00:28]} {[%emt
00:00:01]} 43. Rc6 {[%clk 00:00:17]} {[%emt 00:00:01]} Ra3 {[%clk 00:00:29]}
{[%emt 00:00:01]} 44. Rb6 {[%clk 00:00:18]} {[%emt 00:00:01]} Ra2+ {[%clk
00:00:30]} 45. Kf3 {[%clk 00:00:19]} Ra4 {[%clk 00:00:31]} 46. Kf2 {[%clk
00:00:20]} {[%emt 00:00:01]} Ra3 {[%clk 00:00:33]} 47. Rc6 {[%clk 00:00:21]}
Rd3 {[%clk 00:00:34]} 48. Rb6 {[%clk 00:00:22]} {[%emt 00:00:01]} Ra3 {[%clk
00:00:35]} 49. Rc6 {[%clk 00:00:23]} Rb3 {[%clk 00:00:36]} 50. Kg2 {[%clk
00:00:24]} Rb2+ {[%clk 00:00:34]} {[%emt 00:00:03]} 51. Kf3 {[%clk 00:00:25]}
{[%emt 00:00:02]} Rb3+ {[%emt 00:00:01]} 1/2-1/2

[Event "Blixt-SM 2021"]
[Site "Elite Hotel Marina Plaza, Kungstorget 6, Helsingborg, Sweden"]
[Date "2021.11.14"]
[Round "11.9"]
[White "Nord, Alexander"]
[Black "Neretljak, Nedzad"]
[Result "0-1"]
[TimeControl "3 minutes + 2 seconds per move."]
[WhiteFideId "1738135"]
[BlackFideId "1713132"]
[WhiteElo "1909"]
[BlackElo "2148"]

1. d4 {[%clk 00:03:02]} {[%emt 00:00:01]} e6 {[%clk 00:03:04]} 2. Nf3 {[%clk
00:03:02]} {[%emt 00:00:01]} h6 {[%clk 00:03:03]} {[%emt 00:00:03]} 3. g3
{[%clk 00:03:03]} {[%emt 00:00:01]} Nf6 {[%clk 00:03:04]} {[%emt 00:00:02]} 4.
Bg2 {[%clk 00:03:04]} d5 {[%clk 00:03:04]} {[%emt 00:00:02]} 5. O-O {[%emt
00:00:02]} c5 6. c4 {[%clk 00:03:03]} {[%emt 00:00:02]} Nc6 {[%clk 00:03:05]}
{[%emt 00:00:03]} 7. cxd5 {[%clk 00:03:02]} {[%emt 00:00:04]} exd5 {[%clk
00:03:04]} {[%emt 00:00:02]} 8. Nc3 {[%clk 00:03:02]} {[%emt 00:00:02]} Be6
{[%clk 00:03:02]} {[%emt 00:00:05]} 9. a3 {[%clk 00:02:50]} {[%emt 00:00:14]}
Be7 {[%clk 00:02:57]} {[%emt 00:00:07]} 10. dxc5 {[%clk 00:02:50]} {[%emt
00:00:02]} Bxc5 {[%clk 00:02:58]} {[%emt 00:00:01]} 11. b4 {[%clk 00:02:51]}
{[%emt 00:00:01]} Bb6 {[%clk 00:02:57]} {[%emt 00:00:03]} 12. Na4 {[%clk
00:02:46]} {[%emt 00:00:06]} O-O {[%clk 00:02:51]} {[%emt 00:00:08]} 13. Bb2
{[%clk 00:02:45]} {[%emt 00:00:03]} Ne4 {[%clk 00:02:49]} {[%emt 00:00:04]} 14.
Rc1 {[%clk 00:02:30]} {[%emt 00:00:16]} a6 {[%clk 00:02:45]} {[%emt 00:00:06]}
15. Nxb6 {[%clk 00:02:28]} {[%emt 00:00:04]} Qxb6 {[%clk 00:02:45]} {[%emt
00:00:02]} 16. Nd4 {[%clk 00:02:25]} {[%emt 00:00:05]} Nxd4 {[%clk 00:02:33]}
{[%emt 00:00:14]} 17. Bxd4 {[%clk 00:02:24]} {[%emt 00:00:03]} Qb5 {[%clk
00:02:30]} {[%emt 00:00:05]} 18. Re1 {[%clk 00:01:35]} {[%emt 00:00:51]} Rac8
{[%clk 00:02:31]} {[%emt 00:00:01]} 19. Rxc8 {[%clk 00:01:14]} {[%emt
00:00:23]} Rxc8 {[%clk 00:02:32]} 20. Qa1 {[%clk 00:01:15]} {[%emt 00:00:01]}
f6 {[%clk 00:02:25]} {[%emt 00:00:10]} 21. Bf1 {[%clk 00:00:44]} {[%emt
00:00:32]} Qa4 {[%clk 00:02:15]} {[%emt 00:00:13]} 22. Rc1 {[%clk 00:00:40]}
{[%emt 00:00:05]} Rc2 {[%clk 00:02:07]} {[%emt 00:00:10]} 23. Qb1 {[%clk
00:00:30]} {[%emt 00:00:13]} Rc6 {[%clk 00:01:54]} {[%emt 00:00:14]} 24. Rxc6
{[%clk 00:00:28]} {[%emt 00:00:04]} Qxc6 {[%clk 00:01:53]} {[%emt 00:00:03]} 25.
Qb2 {[%clk 00:00:25]} {[%emt 00:00:05]} b5 {[%clk 00:01:49]} {[%emt 00:00:06]}
26. f3 {[%clk 00:00:20]} {[%emt 00:00:07]} Nd6 {[%clk 00:01:49]} 27. Kf2 {[%clk
00:00:08]} {[%emt 00:00:15]} Nc4 {[%clk 00:01:50]} {[%emt 00:00:02]} 28. Qc3
{[%clk 00:00:08]} {[%emt 00:00:01]} Bf7 {[%clk 00:01:46]} {[%emt 00:00:06]} 29.
e3 {[%clk 00:00:09]} {[%emt 00:00:02]} Qe6 {[%clk 00:01:43]} {[%emt 00:00:04]}
30. h4 {[%clk 00:00:08]} {[%emt 00:00:03]} Bg6 {[%clk 00:01:40]} {[%emt
00:00:06]} 31. Kg2 {[%clk 00:00:05]} {[%emt 00:00:05]} Be8 {[%clk 00:01:38]}
{[%emt 00:00:03]} 32. Be2 {[%clk 00:00:05]} {[%emt 00:00:02]} Bd7 {[%clk
00:01:39]} 33. Kf2 {[%clk 00:00:05]} {[%emt 00:00:02]} Qh3 {[%clk 00:01:38]}
{[%emt 00:00:03]} 34. Bf1 {[%clk 00:00:05]} {[%emt 00:00:02]} Qh2+ {[%clk
00:01:37]} {[%emt 00:00:03]} 35. Ke1 {[%clk 00:00:04]} {[%emt 00:00:03]} Qxg3+
{[%clk 00:01:36]} {[%emt 00:00:02]} 36. Ke2 {[%clk 00:00:04]} {[%emt 00:00:02]}
Qh2+ {[%clk 00:01:35]} {[%emt 00:00:03]} 37. Ke1 {[%clk 00:00:03]} {[%emt
00:00:03]} Qxh4+ {[%clk 00:01:35]} {[%emt 00:00:02]} 38. Kd1 {[%clk 00:00:03]}
{[%emt 00:00:01]} Qf2 {[%clk 00:01:34]} {[%emt 00:00:03]} 39. Be2 {[%clk
00:00:03]} {[%emt 00:00:02]} Bf5 {[%clk 00:01:30]} {[%emt 00:00:07]} 40. e4
{[%clk 00:00:04]} Qg3 {[%clk 00:00:54]} {[%emt 00:00:39]} 41. exf5 {[%clk
00:00:05]} h5 {[%clk 00:00:51]} {[%emt 00:00:04]} 42. Bxc4 {[%clk 00:00:04]}
{[%emt 00:00:03]} bxc4 {[%clk 00:00:51]} {[%emt 00:00:02]} 43. a4 {[%clk
00:00:05]} h4 {[%clk 00:00:49]} {[%emt 00:00:04]} 44. b5 {[%clk 00:00:05]}
{[%emt 00:00:02]} axb5 {[%clk 00:00:47]} {[%emt 00:00:04]} 45. axb5 {[%clk
00:00:06]} h3 {[%clk 00:00:47]} 46. Qa5 {[%emt 00:00:07]} h2 {[%clk 00:00:45]}
{[%emt 00:00:03]} 47. Qd8+ {[%clk 00:00:04]} Kh7 {[%clk 00:00:46]} {[%emt
00:00:01]} 48. Qe8 {[%clk 00:00:03]} {[%emt 00:00:03]} h1=Q+ {[%clk 00:00:45]}
{[%emt 00:00:03]} 49. Kc2 {[%clk 00:00:04]} {[%emt 00:00:01]} Qhxf3 {[%clk
00:00:43]} {[%emt 00:00:04]} 50. b6 {[%clk 00:00:04]} {[%emt 00:00:03]} Qb3+
{[%clk 00:00:43]} {[%emt 00:00:01]} 0-1

[Event "Blixt-SM 2021"]
[Site "Elite Hotel Marina Plaza, Kungstorget 6, Helsingborg, Sweden"]
[Date "2021.11.14"]
[Round "13.7"]
[White "Nord, Alexander"]
[Black "Rasti, Arvin"]
[Result "1-0"]
[TimeControl "3 minutes + 2 seconds per move."]
[WhiteFideId "1738135"]
[BlackFideId "1741160"]
[WhiteElo "1909"]
[BlackElo "2054"]

1. d4 {[%clk 00:03:02]} {[%emt 00:00:01]} Nf6 {[%clk 00:03:03]} 2. Nf3 {[%clk
00:03:03]} {[%emt 00:00:01]} g6 {[%clk 00:03:04]} {[%emt 00:00:02]} 3. g3
{[%clk 00:03:04]} Bg7 {[%clk 00:03:05]} 4. Bg2 {[%clk 00:03:05]} {[%emt
00:00:01]} O-O {[%clk 00:03:05]} {[%emt 00:00:02]} 5. O-O {[%clk 00:03:05]}
{[%emt 00:00:02]} d6 {[%clk 00:03:07]} 6. b3 {[%clk 00:03:06]} {[%emt
00:00:01]} a5 {[%clk 00:02:58]} {[%emt 00:00:11]} 7. a4 {[%clk 00:03:06]}
{[%emt 00:00:01]} Nbd7 {[%clk 00:02:55]} {[%emt 00:00:05]} 8. Bb2 {[%clk
00:03:07]} {[%emt 00:00:02]} c6 {[%clk 00:02:55]} {[%emt 00:00:02]} 9. c4
{[%clk 00:03:03]} {[%emt 00:00:06]} Qc7 {[%clk 00:02:52]} {[%emt 00:00:04]} 10.
Nbd2 {[%clk 00:02:58]} {[%emt 00:00:08]} e5 {[%clk 00:02:52]} {[%emt 00:00:02]}
11. e4 {[%clk 00:02:39]} {[%emt 00:00:21]} b6 {[%clk 00:02:45]} {[%emt
00:00:09]} 12. Re1 {[%clk 00:02:37]} {[%emt 00:00:03]} Bb7 {[%clk 00:02:42]}
{[%emt 00:00:06]} 13. Qc2 {[%clk 00:02:27]} {[%emt 00:00:12]} Rad8 {[%clk
00:02:39]} {[%emt 00:00:04]} 14. Rad1 {[%clk 00:02:20]} {[%emt 00:00:09]} Rfe8
{[%clk 00:02:37]} {[%emt 00:00:04]} 15. h3 {[%clk 00:02:18]} {[%emt 00:00:04]}
Kh8 {[%clk 00:02:16]} {[%emt 00:00:23]} 16. c5 {[%emt 00:00:35]} bxc5 {[%clk
00:02:07]} {[%emt 00:00:08]} 17. dxe5 {[%clk 00:01:49]} {[%emt 00:00:02]} Nxe5
{[%clk 00:01:43]} {[%emt 00:00:26]} 18. Nxe5 {[%clk 00:01:49]} {[%emt
00:00:01]} dxe5 {[%clk 00:01:43]} {[%emt 00:00:02]} 19. Nc4 {[%clk 00:01:38]}
{[%emt 00:00:13]} Kg8 {[%clk 00:01:19]} {[%emt 00:00:27]} 20. Rxd8 {[%clk
00:01:28]} {[%emt 00:00:12]} Rxd8 {[%clk 00:01:18]} {[%emt 00:00:03]} 21. Bxe5
{[%clk 00:01:26]} {[%emt 00:00:03]} Qe7 {[%clk 00:01:17]} {[%emt 00:00:02]} 22.
Bc3 {[%clk 00:01:22]} {[%emt 00:00:07]} Nd7 {[%clk 00:00:58]} {[%emt 00:00:22]}
23. Bxg7 {[%clk 00:01:20]} {[%emt 00:00:04]} Kxg7 {[%clk 00:00:58]} {[%emt
00:00:01]} 24. Qc3+ {[%clk 00:01:20]} {[%emt 00:00:02]} f6 {[%clk 00:00:56]}
{[%emt 00:00:05]} 25. e5 {[%clk 00:01:14]} {[%emt 00:00:08]} fxe5 {[%clk
00:00:35]} {[%emt 00:00:22]} 26. Nxe5 {[%clk 00:01:14]} {[%emt 00:00:02]} Qf6
{[%clk 00:00:35]} {[%emt 00:00:02]} 27. Qxa5 {[%clk 00:00:42]} {[%emt
00:00:34]} Nxe5 {[%clk 00:00:23]} {[%emt 00:00:14]} 28. Rxe5 {[%clk 00:00:43]}
{[%emt 00:00:01]} Rf8 {[%clk 00:00:04]} {[%emt 00:00:20]} 29. Qe1 {[%clk
00:00:31]} {[%emt 00:00:14]} Rf7 {[%clk 00:00:04]} {[%emt 00:00:03]} 30. Re6
{[%clk 00:00:30]} {[%emt 00:00:04]} Qd4 {[%clk 00:00:03]} {[%emt 00:00:02]} 31.
Qe5+ {[%clk 00:00:24]} {[%emt 00:00:07]} 1-0